bitfinex/quotes_ETHUSD_20251015
["timestamp","ask_amount","ask_price","bid_price","bid_amount"]
[1760560271529,30.0,3951.8,3949.3,2.53205252]
[1760560271680,10.0,3951.7,3950.1,0.2]
[1760560271878,0.6862,3951.9,3951.7,2.53055258]
[1760560272083,0.2189,3952.8,3951.5,0.02530684]
[1760560272326,0.2189,3952.8,3950.8,2.53112955]
[1760560272327,0.2189,3954.8,3954.1,2.52902051]
[1760560272482,0.6862,3954.8,3952.8,0.6336]
[1760560272682,0.2189,3955.0,3954.5,2.52870771]
[1760560272882,0.4673,3955.5,3954.6,2.55398775]
[1760560273108,0.4673,3955.5,3954.6,2.65510075]
[1760560273109,0.5937,3955.5,3954.6,2.65510075]
[1760560273321,0.6862,3956.2,3954.6,2.52870075]
[1760560273532,0.4673,3955.6,3954.6,2.52870075]
[1760560274424,0.4673,3955.6,3954.6,2.55398775]
[1760560274724,0.4683,3954.7,3952.2,2.53018601]
[1760560274922,0.4683,3954.7,3952.8,2.52985225]
[1760560275141,30.0,3954.6,3952.9,0.26769522]
[1760560275285,0.001,3954.7,3954.6,2.52870075]
[1760560275983,0.001,3954.7,3954.6,2.55398775]
[1760560276346,0.001,3954.7,3953.6,0.4283]
[1760560276347,0.4683,3954.7,3953.0,0.6336]
[1760560276630,0.4683,3954.7,3954.2,2.52894242]
[1760560276631,0.4673,3954.6,3954.2,2.52894242]
[1760560276922,0.001,3954.7,3952.8,0.6336]
[1760560276923,0.001,3954.7,3954.1,2.52896431]
[1760560277125,0.4673,3954.5,3952.9,2.52978825]
[1760560277322,0.4673,3954.5,3954.4,2.52882864]
[1760560277494,0.4673,3954.5,3954.2,2.52890733]
[1760560277696,30.0,3954.3,3951.9,0.1808]
[1760560278914,30.0,3954.3,3951.9,0.1808]
[1760560279223,12.1953,3954.4,3952.1,2.53028949]
[1760560279224,2.52946688,3953.5,3952.1,2.53028949]
[1760560279522,30.0,3954.1,3950.7,0.003]
[1760560279523,30.0,3953.3,3950.7,0.003]
[1760560279686,30.0,3953.3,3951.7,2.53050107]
[1760560279886,0.6862,3953.4,3951.9,2.5304284]
[1760560280209,0.4673,3953.3,3951.8,0.25305011]
[1760560280409,27.308,3953.2,3951.7,2.53055646]
[1760560280734,30.0,3953.2,3952.4,2.53008897]
[1760560281026,0.2152,3953.9,3953.3,2.52948902]
[1760560281333,0.2152,3953.9,3953.8,2.5292124]
[1760560281545,1.728,3953.7,3951.7,0.468]
[1760560281693,1.728,3953.4,3950.4,2.53136069]
[1760560281889,30.0,3953.1,3950.8,2.53113293]
[1760560282119,11.839,3952.9,3952.3,2.53015423]
[1760560282314,10.2152,3952.8,3951.1,0.1808]
[1760560282517,0.4281,3953.7,3951.2,0.49330876]
[1760560282757,0.4281,3953.7,3951.3,0.6336]
[1760560282936,0.2152,3953.9,3953.8,2.5292124]
[1760560283138,0.2152,3953.9,3952.4,2.53009767]
[1760560283139,0.4281,3954.4,3953.0,0.1808]
[1760560283331,14.05,3954.3,3952.3,2.5301723]
[1760560283651,0.001,3954.7,3954.6,2.52870075]
[1760560283952,0.001,3954.7,3954.6,2.55398775]
[1760560284448,0.001,3954.7,3954.6,2.52870075]
[1760560285855,0.001,3954.7,3954.6,0.025287]
[1760560286019,0.4291,3954.7,3953.1,0.1471]
[1760560286222,0.001,3954.7,3954.6,2.52870075]
[1760560286442,0.001,3954.7,3954.6,3.03444964]
[1760560286644,0.001,3954.7,3954.6,4.16133664]
[1760560286845,0.001,3954.7,3954.6,4.13604964]
[1760560287043,0.001,3954.7,3954.6,3.03444964]
[1760560287456,0.001,3954.7,3954.6,0.50574889]
[1760560287655,0.001,3954.7,3953.1,0.1471]
[1760560287855,0.001,3954.7,3954.6,2.52870075]
[1760560288056,0.001,3954.7,3954.6,3.18758775]
[1760560288332,0.001,3954.7,3954.6,2.52870075]
[1760560288631,0.001,3954.7,3954.6,3.03444976]
[1760560288845,0.001,3954.7,3954.6,2.52870075]
[1760560289768,0.001,3954.7,3954.6,2.55398775]
[1760560290061,0.001,3954.7,3954.6,2.52870075]
[1760560290262,0.001,3954.7,3954.6,3.65558775]
[1760560290469,0.001,3954.7,3954.6,3.63030075]
[1760560290780,0.001,3954.7,3954.6,4.24620976]
[1760560292060,0.001,3954.7,3954.6,4.27149676]
[1760560292261,0.001,3954.7,3954.6,4.24620976]
[1760560292426,0.001,3954.7,3954.6,4.27149676]
[1760560292627,0.001,3954.7,3954.6,4.24620976]
[1760560292832,0.001,3954.7,3954.6,4.27149676]
[1760560293035,0.001,3954.7,3954.6,4.24620976]
[1760560293472,0.001,3954.7,3954.6,4.37260976]
[1760560293966,0.001,3954.7,3954.6,4.39789676]
[1760560294134,0.001,3954.7,3954.6,4.24620976]
[1760560294453,0.001,3954.7,3954.6,5.97420976]
[1760560295175,0.001,3954.7,3954.6,8.76920976]
[1760560295630,0.2152,3957.4,3955.0,4.890045]
[1760560295961,0.2152,3957.4,3955.0,5.80470679]
[1760560296127,0.2152,3957.4,3955.0,6.27270679]
[1760560296333,0.4281,3957.6,3955.0,6.27270679]
[1760560296559,0.2152,3957.8,3955.0,6.27270679]
[1760560296762,0.4281,3957.4,3955.0,9.06470679]
[1760560297602,0.6433,3956.8,3955.0,5.17110679]
[1760560298275,0.6433,3956.8,3955.0,5.63910679]
[1760560298504,0.6433,3956.8,3955.0,5.80470679]
[1760560298975,0.6433,3956.8,3955.0,6.27270679]
[1760560299376,0.2152,3957.8,3957.7,2.52672006]
[1760560299690,0.641,3957.8,3957.7,2.52672006]
[1760560300070,0.641,3957.8,3957.7,2.55198726]
[1760560300303,0.641,3957.8,3957.7,2.52672006]
[1760560300502,0.641,3957.8,3956.2,2.52762694]
[1760560300718,0.4258,3957.7,3956.5,0.31612269]
[1760560300871,0.4258,3957.7,3956.0,0.6336]
[1760560301071,0.4258,3957.6,3956.0,2.52780586]
[1760560301277,0.4258,3957.5,3955.3,2.52825322]
[1760560301505,0.4258,3957.4,3957.0,2.52715556]
[1760560301678,0.4258,3957.4,3955.4,2.52818931]
[1760560301679,0.2152,3957.8,3957.3,2.52697546]
[1760560301878,0.2152,3957.8,3957.4,2.52690495]
[1760560302078,0.2152,3957.8,3957.6,2.52672067]
[1760560302280,0.411,3957.7,3957.6,2.5267839]
[1760560302696,0.2152,3957.8,3956.0,0.468]
[1760560302898,0.2152,3958.0,3957.7,2.52672006]
[1760560303084,0.2152,3958.9,3957.8,0.02526656]
[1760560303286,0.2152,3958.9,3958.8,2.52601798]
[1760560303677,0.6262,3958.9,3958.8,2.52601798]
[1760560304074,10.0,3961.6,3958.6,2.52609992]
[1760560304284,0.2152,3962.0,3959.9,2.52531629]
[1760560304285,0.1256,3960.7,3959.9,2.52531629]
[1760560304513,0.1256,3960.7,3959.9,2.65091629]
[1760560304819,0.2152,3962.0,3960.7,2.52480622]
[1760560304820,0.2152,3960.8,3960.7,2.52480622]
[1760560305109,0.2152,3960.8,3960.5,2.52487546]
[1760560305311,0.2152,3960.8,3960.7,2.52480622]
[1760560305499,0.2152,3962.0,3960.9,2.52467873]
[1760560305698,0.2152,3962.0,3960.5,2.52493256]
[1760560305873,0.2152,3962.0,3960.6,2.52480946]
[1760560306073,10.2152,3962.0,3960.9,2.52467873]
[1760560306300,0.2152,3962.0,3959.4,0.6336]
[1760560306625,0.2152,3962.0,3958.4,2.52627324]
[1760560306626,0.2152,3959.4,3958.4,2.52627324]
[1760560306776,0.2152,3959.4,3957.6,0.468]
[1760560306976,0.2152,3959.4,3957.8,2.52664083]
[1760560307177,0.2152,3959.4,3959.0,2.52585947]
[1760560307420,0.2152,3959.4,3957.8,2.52664083]
[1760560307601,0.2152,3959.4,3958.0,0.27451408]
[1760560307802,0.2152,3959.4,3958.8,2.52601305]
[1760560308007,0.2152,3959.4,3958.3,0.02526337]
[1760560308182,0.2152,3959.4,3959.0,2.52588053]
[1760560308383,0.2152,3959.4,3959.3,2.52569898]
[1760560308684,0.2152,3959.8,3959.7,2.52544384]
[1760560308907,0.2152,3960.0,3959.9,2.52531629]
[1760560309397,0.2152,3959.8,3959.2,2.52576155]
[1760560309600,0.2152,3959.8,3957.8,2.5265951]
[1760560309923,0.2152,3959.8,3957.4,2.52686829]
[1760560309924,0.001,3959.4,3956.7,2.52732632]
[1760560310081,11.789,3959.3,3957.8,2.52664864]
[1760560310487,11.789,3959.3,3957.0,0.468]
[1760560310800,10.346,3958.9,3956.7,0.2283]
[1760560310981,0.001,3959.4,3956.7,0.2283]
[1760560310982,0.227,3958.8,3956.7,0.2283]
[1760560311182,2.826,3958.7,3956.7,2.75560065]
[1760560311379,2.5261456,3958.6,3957.3,2.52695819]
[1760560311582,2.826,3958.7,3957.7,2.52669052]
[1760560311823,2.52625725,3958.5,3956.8,0.27556006]
[1760560311985,0.227,3957.8,3956.9,2.52723091]
[1760560312193,0.227,3957.8,3957.5,2.5268003]
[1760560312542,0.227,3957.8,3955.9,0.4687]
[1760560312740,0.227,3957.8,3957.3,2.52691953]
[1760560312944,0.227,3957.8,3957.3,2.52694116]
[1760560313098,0.227,3957.8,3956.2,0.32148999]
[1760560313099,0.227,3957.8,3956.9,2.52722525]
[1760560313295,0.227,3957.8,3957.2,2.52698655]
[1760560313608,0.227,3957.8,3955.4,0.4687]
[1760560313931,2.52679155,3957.6,3956.5,2.52747003]
[1760560314258,0.227,3957.8,3956.0,2.52778332]
[1760560314422,1.955,3957.8,3956.7,2.52731006]
[1760560314621,0.227,3956.8,3956.0,0.25277833]
[1760560314822,0.227,3956.8,3956.4,2.52753439]
[1760560314997,0.227,3956.8,3956.4,2.52748782]
[1760560315205,0.227,3956.8,3956.6,2.52737512]
[1760560315400,0.227,3956.8,3956.7,0.1256]
[1760560315737,0.227,3956.8,3956.3,2.52761301]
[1760560316038,0.227,3956.8,3956.5,0.1256]
[1760560316235,0.227,3957.8,3955.8,2.52788535]
[1760560316236,0.2166,3957.4,3956.2,0.2255]
[1760560316537,0.2166,3957.4,3955.8,0.4614]
[1760560316538,0.227,3957.8,3955.8,0.4614]
[1760560316738,17.869,3957.7,3956.6,2.52740729]
[1760560316904,17.869,3957.7,3955.9,0.29893703]
[1760560317098,0.227,3957.8,3956.9,2.52721713]
[1760560317406,0.227,3957.8,3957.3,2.52697508]
[1760560317649,0.227,3957.8,3956.5,2.5274503]
[1760560317808,0.227,3957.8,3956.5,0.27529503]
[1760560318109,0.227,3957.8,3957.7,2.52672006]
[1760560318819,0.1514,3958.0,3957.7,2.52672006]
[1760560319025,0.2166,3958.4,3958.0,2.52648136]
[1760560319224,0.2166,3958.4,3958.3,2.52633706]
[1760560320427,0.2166,3958.4,3957.8,2.52665161]
[1760560320607,0.2166,3957.9,3956.4,0.4614]
[1760560320943,0.2166,3957.9,3956.4,2.52752525]
[1760560320944,30.0,3957.8,3956.4,2.52752525]
[1760560321137,14.169,3957.4,3956.6,2.52738901]
[1760560321342,3.795,3957.8,3955.9,2.82674475]
[1760560321637,0.2166,3957.9,3956.1,0.2255]
[1760560321840,0.2166,3957.9,3957.3,2.5269663]
[1760560322135,0.2166,3957.9,3956.1,0.2255]
[1760560322333,0.2166,3957.9,3957.2,2.52702336]
[1760560322537,0.2166,3957.9,3956.2,0.3685817]
[1760560322704,0.2166,3957.9,3956.4,2.52755029]
[1760560322903,0.2166,3957.9,3956.5,0.02527486]
[1760560323104,0.2166,3958.4,3956.6,0.4614]
[1760560323360,0.2166,3958.4,3956.8,2.52729478]
[1760560323527,0.2166,3958.4,3956.7,0.29889503]
[1760560323707,0.2166,3958.4,3957.9,2.52654534]
[1760560323908,0.2166,3958.4,3958.0,2.52652802]
[1760560324304,0.2166,3958.4,3958.1,2.52640641]
[1760560324636,0.2166,3958.4,3957.9,2.52658275]
[1760560324843,0.2166,3958.4,3957.1,0.2255]
[1760560325203,32.52636787,3958.3,3957.5,2.52680207]
[1760560325411,0.2166,3958.4,3956.1,2.7531831]
[1760560325412,30.0,3957.5,3956.1,0.2255]
[1760560325659,0.2166,3957.6,3957.2,2.52699338]
[1760560325814,0.2166,3957.6,3957.3,2.52695531]
[1760560326009,0.2166,3957.6,3956.1,0.2255]
[1760560326234,0.2166,3958.4,3956.3,0.6336]
[1760560326449,0.227,3958.8,3958.0,0.1256]
[1760560326450,0.1256,3958.7,3958.0,0.1256]
[1760560326613,0.227,3958.8,3958.7,2.52608179]
[1760560326808,0.2166,3959.0,3958.7,2.52608179]
[1760560327010,0.1256,3959.2,3958.9,2.52594921]
[1760560327228,0.1256,3959.2,3957.7,0.2255]
[1760560327229,30.0,3959.2,3956.7,0.4614]
[1760560327433,0.1256,3958.4,3957.8,2.65225315]
[1760560327641,0.2166,3958.3,3957.8,0.1256]
[1760560327843,0.2166,3958.3,3958.1,2.52646195]
[1760560328045,0.2166,3958.3,3958.1,2.52643742]
[1760560328251,0.001,3959.4,3958.1,0.74336265]
[1760560328565,0.3422,3959.3,3958.5,2.52615913]
[1760560328770,0.3422,3959.3,3958.5,2.52615025]
[1760560329156,2.52577063,3959.2,3958.4,0.1256]
[1760560329369,2.52577063,3959.2,3958.4,2.65185511]
[1760560329669,0.3422,3959.3,3958.4,0.1256]
[1760560329871,0.3422,3959.3,3958.9,2.52593775]
[1760560330167,0.1256,3959.3,3958.9,2.52593775]
[1760560330588,0.001,3959.4,3958.9,2.52593775]
[1760560330915,0.001,3959.4,3959.2,2.52575852]
[1760560331169,0.001,3959.4,3959.1,2.52581127]
[1760560331383,0.001,3959.4,3959.3,2.52569898]
[1760560331751,0.001,3959.4,3959.3,2.65129898]
[1760560332769,0.001,3959.4,3959.3,3.11269898]
[1760560332971,0.001,3959.4,3959.3,3.67655129]
[1760560333179,0.001,3959.4,3959.3,3.70180827]
[1760560333553,0.001,3959.4,3959.3,3.67655129]
[1760560334144,0.001,3959.4,3959.3,4.33540827]
[1760560334344,0.001,3959.4,3959.3,4.31015129]
[1760560334539,0.001,3959.4,3959.3,4.33540827]
[1760560335009,0.001,3959.4,3959.3,4.31015129]
[1760560336086,0.001,3959.4,3959.3,3.67655129]
[1760560337291,0.001,3959.4,3959.3,4.31015129]
[1760560338481,0.001,3959.4,3959.3,3.21515129]
[1760560338922,0.001,3959.4,3959.3,2.65129898]
[1760560339119,0.001,3959.4,3959.3,0.1256]
[1760560339417,0.001,3959.4,3959.2,2.52571566]
[1760560339615,0.001,3959.4,3959.3,2.55095596]
[1760560339817,0.001,3959.4,3959.3,2.52569898]
[1760560340807,0.001,3959.4,3959.3,2.55095596]
[1760560341309,0.001,3959.4,3959.3,4.13857379]
[1760560341696,0.001,3959.4,3959.3,3.50497379]
[1760560341913,0.001,3959.4,3959.3,3.03337379]
[1760560342235,0.001,3959.4,3959.3,4.13857379]
[1760560342918,0.001,3959.4,3959.3,4.16383077]
[1760560343119,0.001,3959.4,3959.3,4.13857379]
[1760560344746,0.3,3963.9,3960.6,2.664]
[1760560345032,0.3,3963.9,3959.3,3.71827481]
[1760560345033,0.24504048,3963.8,3960.9,2.52467873]
[1760560345208,0.24506593,3963.7,3961.2,0.6336]
[1760560345411,2.5230676,3963.5,3962.4,2.52368992]
[1760560345610,30.0,3963.0,3961.1,0.2288]
[1760560345802,30.0,3963.0,3961.6,2.52418359]
[1760560345803,4.508,3963.0,3961.6,2.52418359]
[1760560346002,0.0968,3961.7,3960.2,0.7004]
[1760560346216,0.0968,3961.7,3960.3,0.6336]
[1760560346433,0.0968,3961.7,3961.4,2.52431028]
[1760560346634,0.0968,3961.7,3961.3,2.52437106]
[1760560346929,0.0968,3961.7,3960.4,0.1334]
[1760560347134,4.944,3962.8,3960.5,0.65884933]
[1760560347304,1.728,3962.8,3960.8,2.52474247]
[1760560347501,0.2161,3963.1,3962.4,2.52366244]
[1760560347899,0.2161,3963.1,3961.4,0.6336]
[1760560348101,0.001,3961.7,3960.5,0.4716]
[1760560348304,0.0968,3961.6,3961.5,2.52429635]
[1760560348498,0.0968,3961.6,3960.5,0.4716]
[1760560348910,0.001,3961.7,3960.7,2.52480622]
[1760560349132,0.001,3961.7,3960.3,2.52505296]
[1760560349344,0.001,3961.7,3961.2,0.1256]
[1760560349538,0.001,3961.7,3961.5,2.52425595]
[1760560349779,0.001,3961.7,3961.5,0.1256]
[1760560350637,0.001,3961.7,3961.2,0.1256]
[1760560350846,0.001,3961.7,3961.3,2.52441676]
[1760560351126,0.001,3961.7,3961.6,2.52423263]
[1760560353966,0.001,3961.7,3961.6,2.54947495]
[1760560354136,0.001,3961.7,3961.6,2.99583263]
[1760560354530,0.001,3961.7,3961.6,3.62943263]
[1760560354928,0.001,3961.7,3961.6,3.65467495]
[1760560355246,0.001,3961.7,3961.6,4.24733174]
[1760560355425,0.001,3961.7,3961.6,4.27257406]
[1760560355623,0.001,3961.7,3961.6,4.24733174]
[1760560356361,0.001,3961.7,3961.6,3.14213174]
[1760560356562,0.001,3961.7,3961.6,2.52423263]
[1760560357059,0.001,3961.7,3960.0,0.4716]
[1760560357277,0.001,3961.7,3961.1,2.52453892]
[1760560357583,0.001,3961.7,3960.9,2.52466244]
[1760560357792,0.001,3961.7,3961.0,0.02524614]
[1760560358081,0.001,3961.7,3960.9,2.52467535]
[1760560358288,0.001,3961.7,3961.1,2.52450615]
[1760560358449,0.001,3961.7,3961.0,2.52456827]
[1760560358649,0.001,3961.7,3961.1,2.52454623]
[1760560358849,0.001,3961.7,3961.3,2.52436735]
[1760560359180,0.001,3961.7,3961.1,2.52449107]
[1760560359379,0.001,3961.7,3961.2,2.52448132]
[1760560359577,0.001,3961.7,3960.5,0.4716]
[1760560359769,0.001,3961.7,3961.5,2.52427811]
[1760560359968,0.001,3961.7,3960.8,2.5247019]
[1760560360147,0.001,3961.7,3960.9,0.02524678]
[1760560360347,0.001,3961.7,3960.5,0.4716]
[1760560360545,0.001,3961.7,3960.1,0.2288]
[1760560360747,0.001,3961.7,3960.3,2.52506123]
[1760560360999,0.001,3961.7,3961.1,2.52449901]
[1760560361182,0.001,3961.7,3961.2,2.65004295]
[1760560361571,0.001,3961.7,3961.2,0.1256]
[1760560362883,0.001,3961.7,3961.3,2.52441851]
[1760560363502,0.001,3961.7,3961.2,0.1256]
[1760560363665,0.1256,3961.5,3960.9,0.1256]
[1760560363860,0.1256,3961.5,3961.0,2.52455215]
[1760560364567,0.1256,3961.5,3961.1,2.52455089]
[1760560364787,0.1256,3961.5,3961.0,2.52459736]
[1760560365652,0.1256,3961.5,3960.9,0.1256]
[1760560366160,0.1256,3961.5,3960.9,2.65025991]
[1760560366786,0.1256,3961.5,3961.0,2.52661026]
[1760560368894,0.001,3961.7,3961.1,0.4716]
[1760560369062,0.001,3961.7,3961.6,2.52423263]
[1760560369460,0.001,3961.7,3961.0,0.002]
[1760560369675,2.52423686,3961.6,3961.0,0.002]
[1760560369897,10.0,3961.2,3961.0,0.002]
[1760560370295,30.0,3961.2,3961.0,0.002]
[1760560370602,2.52452805,3961.2,3961.0,0.002]
[1760560370895,32.52455126,3961.1,3961.0,0.002]
[1760560371057,34.25255126,3961.1,3961.0,0.002]
[1760560371257,6.89855126,3961.1,3961.0,0.002]
[1760560371482,10.0,3961.2,3961.0,0.002]
[1760560371688,11.911,3961.2,3961.0,0.002]
[1760560371881,18.278,3961.2,3961.0,0.002]
[1760560374091,10.57274952,3961.3,3961.0,0.002]
[1760560375592,2.52450666,3961.2,3961.0,0.002]
[1760560376490,10.57274952,3961.3,3961.0,0.002]
[1760560376691,42.52455126,3961.1,3961.0,0.002]
[1760560376893,30.0,3961.1,3961.0,0.002]
[1760560377093,34.25255126,3961.1,3961.0,0.002]
[1760560377497,10.57274952,3960.3,3959.4,0.2288]
[1760560377684,30.0,3960.0,3959.4,0.2288]
[1760560377994,21.904,3960.1,3959.4,0.2288]
[1760560378176,10.57274952,3959.8,3959.0,0.002]
[1760560378491,11.027,3959.7,3959.1,2.52581687]
[1760560378692,11.027,3959.7,3959.2,2.52575667]
[1760560378993,0.24593232,3960.3,3959.2,2.52575667]
[1760560378994,0.1256,3960.1,3959.4,0.1256]
[1760560379192,0.1256,3960.1,3959.3,0.4459]
[1760560379193,1.728,3960.9,3959.5,0.02525571]
[1760560379361,0.1256,3961.1,3960.7,2.52474883]
[1760560379568,0.1256,3961.1,3960.9,2.52463439]
[1760560379766,0.1256,3961.1,3960.8,2.52472634]
[1760560379968,0.1256,3961.1,3960.7,2.52476873]
[1760560380691,0.1256,3961.1,3959.9,2.52528906]
[1760560380692,0.1078,3960.8,3959.0,0.002]
[1760560380897,0.1256,3960.0,3959.3,0.1256]
[1760560381277,0.1256,3960.0,3959.6,2.52550665]
[1760560381495,0.1256,3960.0,3959.5,2.52556785]
[1760560381684,0.1256,3960.0,3959.4,2.52561941]
[1760560381885,0.1256,3960.0,3959.9,2.52531629]
[1760560382068,0.1078,3960.8,3959.9,0.1256]
[1760560382069,0.1256,3960.7,3959.9,0.1256]
[1760560382263,30.0,3960.7,3959.5,2.52557141]
[1760560382466,0.1256,3960.3,3959.6,2.65110111]
[1760560382769,0.1256,3960.3,3959.6,0.1256]
[1760560382963,0.1256,3960.3,3959.7,2.52544384]
[1760560383168,10.57274952,3960.4,3959.0,0.002]
[1760560383397,30.0,3959.8,3959.0,0.002]
[1760560383612,10.57274952,3959.9,3959.0,0.002]
[1760560383780,2.52565475,3959.4,3959.0,0.002]
[1760560384224,32.52571691,3959.3,3959.0,0.002]
[1760560384407,30.0,3959.1,3959.0,0.002]
[1760560384611,2.569,3959.1,3959.0,0.002]
[1760560384830,9.215,3959.9,3959.0,0.002]
[1760560385115,12.028,3959.9,3959.0,0.4479]
[1760560385277,2.52521745,3960.1,3959.1,0.225]
[1760560385479,2.5253629,3959.9,3959.0,0.002]
[1760560385680,32.52544903,3959.7,3959.0,0.002]
[1760560385906,0.24595782,3960.2,3959.0,0.002]
[1760560385907,30.0,3959.3,3959.0,0.002]
[1760560386308,13.63717249,3960.2,3959.3,2.52567361]
[1760560386489,10.57274952,3960.3,3959.2,0.225]
[1760560386490,30.0,3960.0,3959.2,0.225]
[1760560386712,0.1078,3960.8,3959.2,0.225]
[1760560387023,2.639,3960.7,3960.1,0.225]
[1760560387481,2.381,3961.3,3960.1,0.6709]
[1760560387688,2.381,3961.3,3960.7,2.52480544]
[1760560388092,12.52442472,3961.3,3960.1,0.225]
[1760560388279,2.52507835,3960.3,3959.0,0.4479]
[1760560388483,30.0,3960.2,3959.0,0.4479]
[1760560388702,2.5254828,3959.7,3959.0,0.002]
[1760560388984,30.0,3959.8,3959.0,0.002]
[1760560389183,2.52568042,3959.4,3959.0,0.002]
[1760560389408,30.0,3959.5,3959.0,0.002]
[1760560389611,30.0,3959.4,3959.0,0.002]
[1760560390114,31.728,3959.9,3959.0,0.002]
[1760560390314,30.0,3959.3,3959.0,0.002]
[1760560390891,2.52582657,3959.1,3959.0,0.002]
[1760560391134,32.77209055,3959.1,3959.0,0.002]
[1760560391650,32.52582657,3959.1,3959.0,0.002]
[1760560392125,32.77209055,3959.1,3959.0,0.002]
[1760560392650,34.50009055,3959.1,3958.6,0.002]
[1760560392837,44.76772886,3958.7,3958.6,0.002]
[1760560393036,2.52633706,3958.3,3958.2,0.002]
[1760560393245,34.25433706,3958.3,3958.2,0.002]
[1760560394155,2.52665622,3957.8,3956.3,0.225]
[1760560394366,32.52665622,3957.8,3956.3,0.225]
[1760560394520,30.0,3957.8,3956.6,2.52741567]
[1760560394722,32.52665622,3957.8,3956.3,2.75261234]
[1760560394935,32.52665622,3957.8,3956.3,0.225]
[1760560395254,32.77322653,3957.8,3956.3,0.225]
[1760560395426,32.52665622,3957.8,3956.6,2.52740781]
[1760560395629,32.52665622,3957.8,3955.4,0.4459]
[1760560395630,1.728,3957.7,3955.4,0.4459]
[1760560395849,30.0,3956.9,3955.7,0.225]
[1760560396152,30.0,3956.3,3955.2,0.225]
[1760560396322,10.29954707,3956.4,3955.2,0.225]
[1760560396525,32.52736096,3956.7,3955.3,0.4459]
[1760560396724,2.52759846,3956.4,3955.3,0.4459]
[1760560396923,30.0,3956.3,3955.3,2.5282532]
[1760560397161,30.0,3956.3,3955.4,2.52817945]
[1760560397454,30.0,3956.1,3955.2,0.225]
[1760560397626,30.0,3956.2,3955.2,0.225]
[1760560397820,30.0,3955.9,3955.0,0.225]
[1760560398130,30.0,3956.3,3954.7,0.225]
[1760560398453,2.52881262,3954.5,3953.8,0.003]
[1760560398672,30.0,3954.5,3953.8,0.003]
[1760560398818,10.29954707,3954.3,3953.8,0.003]
[1760560399120,34.50479239,3953.9,3953.8,0.003]
[1760560399535,34.35724843,3953.9,3953.8,0.003]
[1760560400131,1.97566956,3953.7,3951.8,2.53048903]
[1760560400321,1.97566956,3953.7,3951.3,0.225]
[1760560400322,30.0,3953.0,3951.3,0.225]
[1760560400523,2.53027559,3952.2,3951.0,0.225]
[1760560400721,30.0,3951.9,3951.0,0.225]
[1760560400953,30.0,3951.7,3951.1,0.2358]
[1760560401165,30.0,3951.9,3951.1,0.2358]
[1760560401334,5.211,3951.9,3951.1,0.2358]
[1760560401538,1.728,3952.5,3951.1,0.2358]
[1760560401539,30.0,3952.2,3951.1,0.2358]
[1760560401847,30.0,3952.3,3951.1,0.2358]
[1760560402049,30.0,3952.3,3951.2,2.53087149]
[1760560402383,1.728,3952.4,3951.1,0.003]
[1760560402384,30.0,3951.3,3951.1,0.003]
[1760560402563,2.53087669,3951.2,3951.1,0.003]
[1760560402857,34.25887669,3951.2,3951.1,0.003]
[1760560403031,34.35957669,3951.2,3951.1,0.003]
[1760560403222,2.53113293,3950.8,3950.7,0.003]
[1760560403462,44.55868,3950.8,3950.7,0.003]
[1760560403648,44.55868,3950.8,3947.2,2.53341447]
[1760560403649,0.24848915,3950.5,3947.3,0.2328]
[1760560403851,30.0,3949.1,3947.3,0.2328]
[1760560404050,30.0,3949.1,3948.3,2.76551459]
[1760560404255,0.1264,3948.6,3948.3,0.2328]
[1760560404550,0.24851478,3950.2,3948.3,0.2328]
[1760560404551,2.52804083,3955.7,3949.2,0.1264]
[1760560404728,0.1264,3952.5,3950.3,0.002]
[1760560404927,18.5,3953.1,3950.4,0.71921389]
[1760560405161,18.5,3953.2,3950.5,0.4611]
[1760560405462,0.099,3953.5,3950.5,0.4611]
[1760560405463,18.5,3953.4,3950.6,2.53126107]
[1760560405626,18.5,3953.4,3950.7,0.32251611]
[1760560405960,18.599,3953.4,3950.8,0.4611]
[1760560406166,0.099,3953.5,3950.8,0.4611]
[1760560406167,18.5,3953.2,3950.8,0.4611]
[1760560406368,5.095,3953.2,3950.9,0.02531068]
[1760560406560,0.099,3953.8,3951.0,0.4611]
[1760560406870,0.099,3954.9,3953.5,2.52935183]
[1760560407169,0.1362,3955.1,3953.3,0.6939]
[1760560407170,18.5,3954.8,3953.3,0.6939]
[1760560407368,0.1362,3955.1,3953.0,0.2328]
[1760560407369,0.099,3954.7,3953.0,0.2328]
[1760560407568,1.728,3954.5,3953.5,2.52934249]
[1760560407774,18.5,3955.0,3953.6,0.4611]
[1760560407976,0.099,3955.7,3953.6,0.4611]
[1760560407977,18.5,3955.6,3953.8,2.5292124]
[1760560408138,18.5,3955.6,3954.9,2.52846642]
[1760560408338,18.5,3955.9,3955.0,2.52843937]
[1760560408540,18.5,3955.9,3954.5,0.2328]
[1760560408541,18.5,3955.9,3954.5,0.6939]
[1760560408750,18.5,3955.9,3954.6,2.85093438]
[1760560408969,18.5,3955.9,3954.9,2.52850616]
[1760560409273,18.5,3956.7,3954.9,2.52845817]
[1760560409446,18.5,3956.7,3955.9,2.52786352]
[1760560409648,18.5,3956.7,3954.5,0.2328]
[1760560409649,1.728,3956.6,3954.5,0.2328]
[1760560409851,18.5,3956.4,3954.5,0.2328]
[1760560410069,18.5,3956.2,3955.1,2.52832064]
[1760560410239,18.5,3956.2,3954.5,0.2328]
[1760560410447,0.39643788,3956.9,3953.8,2.76200207]
[1760560410448,1.728,3955.8,3953.8,2.76200207]